[Event "55th Rubinstein Memorial-C 2019"]
[Site "Polanica-Zdroj"]
[Date "2019.08.18"]
[Round "2.16"]
[White "Szydelko, Michal"]
[Black "Juszczak, Milosz"]
[Result "1-0"]
[ECO "B06"]
[WhiteElo "1752"]
[BlackElo "1516"]
[Annotator "NA"]
[PlyCount "157"]
[EventDate "2019.08.17"]
[EventType "swiss"]
[EventCountry "POL"]
[SourceTitle "playchess.com"]
[Source "ChessBase"]
[SourceQuality "1"]
[TimeControl "40/5400+30:1800+30"]

1. e4 {[%emt 0:00:00]} g6 {[%emt 0:05:22]} 2. d4 {[%emt 0:00:00]} d5 {[%emt 0:00:22]} 3. exd5 {[%emt 0:01:10]} Qxd5 {[%emt 0:00:10]} 4. Nf3 {[%emt 0:00:15]} Nh6 {[%emt 0:02:35]} 5. Be2 {[%emt 0:02:08]} Nf5 {[%emt 0:04:12]} 6. O-O {[%emt 0:02:00]} Bg7 {[%emt 0:00:29]} 7. c3 {[%emt 0:00:33]} O-O {[%emt 0:00:34]} 8. Bf4 {[%emt 0:00:48]} Na6 {[%emt 0:06:01]} 9. Bxa6 {[%emt 0:04:32]} bxa6 {[%emt 0:00:03]} 10. Qb3 {[%emt 0:02:33]} Qc6 {[%emt 0:04:53]} 11. Nbd2 {[%emt 0:07:33]} Be6 {[%emt 0:01:47]} 12. Qc2 {[%emt 0:00:12]} Nxd4 {[%emt 0:05:16]} 13. Nxd4 {[%emt 0:07:18]} Bxd4 {[%emt 0:00:03]} 14. Qe4 {[%emt 0:07:49]} Qxe4 {[%emt 0:01:20]} 15. Nxe4 {[%emt 0:00:01]} Bb6 {[%emt 0:01:03]} 16. Rfe1 {[%emt 0:02:26]} Bf5 {[%emt 0:07:10]} 17. Ng3 {[%emt 0:02:58]} Be6 {[%emt 0:02:24]} 18. Ne4 {[%emt 0:11:11]} Rfe8 {[%emt 0:01:14]} 19. b3 {[%emt 0:01:15]} Rad8 {[%emt 0:05:16]} 20. Rad1 {[%emt 0:02:13]} Bg4 {[%emt 0:09:42]} 21. Rd2 {[%emt 0:09:02]} Bf5 {[%emt 0:06:32]} 22. Ng3 {[%emt 0:00:51]} Rxd2 {[%emt 0:04:23]} 23. Bxd2 {[%emt 0:00:01]} Be6 {[%emt 0:08:16]} 24. Kf1 {[%emt 0:05:01]} a5 {[%emt 0:01:46]} 25. Ke2 {[%emt 0:02:08]} a4 {[%emt 0:02:36]} 26. Rb1 {[%emt 0:00:35]} f5 {[%emt 0:02:57]} 27. Nf1 {[%emt 0:01:24]} Rd8 {[%emt 0:03:47]} 28. Be3 {[%emt 0:02:47]} c5 {[%emt 0:01:33]} 29. Nd2 {[%emt 0:00:54]} Rd5 {[%emt 0:04:39]} 30. bxa4 {[%emt 0:08:31]} Ba5 {[%emt 0:02:44]} 31. Rb7 {[%emt 0:07:01]} Bxc3 {[%emt 0:00:51]} 32. Rxe7 {[%emt 0:00:32]} Bxd2 {[%emt 0:00:34]} 33. Rxe6 {[%emt 0:00:08]} Bxe3 {[%emt 0:00:32]} 34. fxe3 {[%emt 0:01:49]} c4 {[%emt 0:02:59]} 35. Rc6 {[%emt 0:01:50]} Rd3 {[%emt 0:00:04]} 36. Rxc4 {[%emt 0:00:25]} Ra3 {[%emt 0:00:04]} 37. Rc8+ {[%emt 0:00:05]} Kg7 {[%emt 0:00:04]} 38. Rc7+ {[%emt 0:00:04]} Kh6 {[%emt 0:00:34]} 39. Rxa7 {[%emt 0:00:06]} Rxa2+ {[%emt 0:00:04]} 40. Kf3 {[%emt 0:00:05]} Kg5 {[%emt 0:03:07]} 41. Rxh7 {[%emt 0:31:45]} Rxa4 {[%emt 0:30:22]} 42. Rd7 {[%emt 0:00:26]} Ra1 {[%emt 0:01:16]} 43. Kg3 {[%emt 0:02:14]} Ra4 {[%emt 0:00:55]} 44. Rd4 {[%emt 0:00:22]} Ra2 {[%emt 0:00:37]} 45. h4+ {[%emt 0:00:44]} Kh6 {[%emt 0:00:22]} 46. Kf3 {[%emt 0:02:21]} Ra3 {[%emt 0:00:42]} 47. g3 {[%emt 0:00:47]} Ra1 {[%emt 0:00:21]} 48. e4 {[%emt 0:01:00]} fxe4+ {[%emt 0:00:27]} 49. Rxe4 {[%emt 0:00:04]} Ra3+ {[%emt 0:00:21]} 50. Kg4 {[%emt 0:00:08]} Ra5 {[%emt 0:00:40]} 51. Re8 {[%emt 0:01:37]} Ra4+ {[%emt 0:00:15]} 52. Kh3 {[%emt 0:00:15]} Ra3 {[%emt 0:00:20]} 53. Re4 {[%emt 0:00:23]} Ra5 {[%emt 0:00:31]} 54. Kg4 {[%emt 0:00:05]} Rb5 {[%emt 0:00:14]} 55. Kh3 {[%emt 0:00:06]} Rb3 {[%emt 0:00:34]} 56. Kg4 {[%emt 0:00:16]} Rb5 {[%emt 0:00:11]} 57. Kf4 {[%emt 0:00:14]} Rf5+ {[%emt 0:00:32]} 58. Ke3 {[%emt 0:00:04]} Ra5 {[%emt 0:00:18]} 59. g4 {[%emt 0:00:03]} Ra3+ {[%emt 0:00:35]} 60. Kf4 {[%emt 0:00:15]} Rh3 {[%emt 0:01:07]} 61. Re8 {[%emt 0:00:07]} Ra3 {[%emt 0:00:47]} 62. g5+ {[%emt 0:00:37]} Kg7 {[%emt 0:00:22]} 63. Re7+ {[%emt 0:00:12]} Kf8 {[%emt 0:00:11]} 64. Re6 {[%emt 0:00:59]} Kf7 {[%emt 0:00:37]} 65. Rf6+ {[%emt 0:00:08]} Kg7 {[%emt 0:00:07]} 66. Kg4 {[%emt 0:00:02]} Ra1 {[%emt 0:01:04]} 67. Rb6 {[%emt 0:00:20]} Ra4+ {[%emt 0:00:17]} 68. Kg3 {[%emt 0:00:09]} Ra3+ {[%emt 0:00:11]} 69. Kf4 {[%emt 0:00:07]} Ra4+ {[%emt 0:00:12]} 70. Ke5 {[%emt 0:00:07]} Rxh4 {[%emt 0:01:40]} 71. Rb7+ {[%emt 0:00:04]} Kg8 {[%emt 0:00:47]} 72. Kf6 {[%emt 0:00:12]} Ra4 {[%emt 0:00:20]} 73. Rg7+ {[%emt 0:01:05]} Kh8 {[%emt 0:00:19]} 74. Rxg6 {[%emt 0:00:08]} Ra6+ {[%emt 0:00:22]} 75. Kf5 {[%emt 0:00:05]} Rxg6 {[%emt 0:00:44]} 76. Kxg6 {[%emt 0:00:02]} Kg8 {[%emt 0:00:11]} 77. Kf6 {[%emt 0:00:02]} Kf8 {[%emt 0:00:09]} 78. g6 {[%emt 0:00:09]} Kg8 {[%emt 0:00:20]} 79. g7 {[%emt 0:00:03]} 1-0

[Event "55th Rubinstein Memorial-C 2019"]
[Site "Polanica-Zdroj"]
[Date "2019.08.18"]
[Round "2.17"]
[White "Zgoda, Damian"]
[Black "Grzadka, Artur"]
[Result "1-0"]
[ECO "A45"]
[WhiteElo "1725"]
[BlackElo "1512"]
[Annotator "NA"]
[PlyCount "59"]
[EventDate "2019.08.17"]
[EventType "swiss"]
[EventCountry "POL"]
[SourceTitle "playchess.com"]
[Source "ChessBase"]
[SourceQuality "1"]
[TimeControl "40/5400+30:1800+30"]

1. d4 {[%emt 0:00:00]} Nf6 {[%emt 0:00:00]} 2. Bg5 {[%emt 0:00:03]} e6 {[%emt 0:00:39]} 3. Nd2 {[%emt 0:00:35]} Be7 {[%emt 0:01:00]} 4. e3 {[%emt 0:00:39]} O-O {[%emt 0:03:12]} 5. Bd3 {[%emt 0:00:15]} d5 {[%emt 0:01:22]} 6. Ngf3 {[%emt 0:00:12]} b6 {[%emt 0:02:10]} 7. c3 {[%emt 0:00:32]} Bb7 {[%emt 0:00:47]} 8. O-O {[%emt 0:00:25]} c5 {[%emt 0:01:44]} 9. Ne5 {[%emt 0:01:00]} Nbd7 {[%emt 0:01:22]} 10. Qa4 {[%emt 0:01:03]} Nxe5 {[%emt 0:01:46]} 11. dxe5 {[%emt 0:00:25]} Nd7 {[%emt 0:14:00]} 12. Qh4 {[%emt 0:04:46]} h6 {[%emt 0:03:46]} 13. Bxe7 {[%emt 0:00:13]} Qc7 {[%emt 0:00:41]} 14. Bxf8 {[%emt 0:00:33]} Rxf8 {[%emt 0:00:06]} 15. f4 {[%emt 0:00:37]} c4 {[%emt 0:00:07]} 16. Bc2 {[%emt 0:00:44]} Qc5 {[%emt 0:00:15]} 17. Rf3 {[%emt 0:03:37]} b5 {[%emt 0:00:59]} 18. Rg3 {[%emt 0:01:24]} Kh8 {[%emt 0:00:31]} 19. Qg4 {[%emt 0:03:09]} Rg8 {[%emt 0:00:24]} 20. Qh5 {[%emt 0:01:48]} Qe7 {[%emt 0:00:27]} 21. Nf3 {[%emt 0:01:08]} a5 {[%emt 0:00:43]} 22. Nh4 {[%emt 0:01:02]} Nf8 {[%emt 0:01:34]} 23. Nf3 {[%emt 0:01:55]} Nd7 {[%emt 0:00:14]} 24. Rf1 {[%emt 0:10:28]} Nc5 {[%emt 0:01:29]} 25. Ng5 {[%emt 0:05:06]} Rf8 {[%emt 0:00:26]} 26. Nh7 {[%emt 0:05:15]} Rg8 {[%emt 0:00:15]} 27. Nf6 {[%emt 0:00:26]} Rf8 {[%emt 0:00:56]} 28. Ng4 {[%emt 0:00:45]} Nd3 {[%emt 0:00:24]} 29. Nxh6 {[%emt 0:00:35]} Rc8 {[%emt 0:00:30]} 30. Nf5+ {[%emt 0:00:19]} 1-0

[Event "55th Rubinstein Memorial-C 2019"]
[Site "Polanica-Zdroj"]
[Date "2019.08.18"]
[Round "2.18"]
[White "Rosa, Antoni"]
[Black "Gromada, Andrzej"]
[Result "1-0"]
[ECO "A36"]
[WhiteElo "1528"]
[BlackElo "1721"]
[Annotator "NA"]
[PlyCount "121"]
[EventDate "2019.08.17"]
[EventType "swiss"]
[EventCountry "POL"]
[SourceTitle "playchess.com"]
[Source "ChessBase"]
[SourceQuality "1"]
[TimeControl "40/5400+30:1800+30"]

1. c4 {[%emt 0:00:00]} g6 {[%emt 0:00:22]} 2. Nc3 {[%emt 0:00:31]} c5 {[%emt 0:00:18]} 3. g3 {[%emt 0:01:00]} Bg7 {[%emt 0:00:31]} 4. Bg2 {[%emt 0:00:43]} Nc6 {[%emt 0:00:40]} 5. b3 {[%emt 0:01:34]} Nf6 {[%emt 0:02:20]} 6. Bb2 {[%emt 0:03:05]} O-O {[%emt 0:00:39]} 7. Nf3 {[%emt 0:01:20]} d5 {[%emt 0:06:30]} 8. cxd5 {[%emt 0:05:36]} Nxd5 {[%emt 0:04:38]} 9. Nh4 {[%emt 0:06:39]} Be6 {[%emt 0:02:58]} 10. Qc1 {[%emt 0:02:24]} Rc8 {[%emt 0:02:06]} 11. Nxd5 {[%emt 0:02:04]} Bxd5 {[%emt 0:02:02]} 12. Bxg7 {[%emt 0:01:13]} Kxg7 {[%emt 0:00:18]} 13. Qb2+ {[%emt 0:00:42]} Kg8 {[%emt 0:01:05]} 14. Rc1 {[%emt 0:02:10]} Nd4 {[%emt 0:04:11]} 15. Rc3 {[%emt 0:10:54]} Bxg2 {[%emt 0:02:15]} 16. Nxg2 {[%emt 0:00:10]} Qd5 {[%emt 0:00:17]} 17. Rg1 {[%emt 0:01:23]} Qh5 {[%emt 0:02:38]} 18. Re3 {[%emt 0:06:13]} Qxh2 {[%emt 0:03:32]} 19. Kf1 {[%emt 0:01:22]} Rfe8 {[%emt 0:03:03]} 20. Re4 {[%emt 0:03:34]} Qh3 {[%emt 0:04:50]} 21. Rh4 {[%emt 0:02:53]} Qd7 {[%emt 0:04:06]} 22. Ne1 {[%emt 0:04:50]} e5 {[%emt 0:02:46]} 23. Rgh1 {[%emt 0:00:51]} h5 {[%emt 0:00:46]} 24. Qc3 {[%emt 0:02:28]} Nf5 {[%emt 0:01:51]} 25. R4h2 {[%emt 0:00:41]} Qd4 {[%emt 0:02:28]} 26. Qf3 {[%emt 0:01:57]} e4 {[%emt 0:18:45]} 27. Qf4 {[%emt 0:00:51]} Qg7 {[%emt 0:00:17]} 28. g4 {[%emt 0:00:49]} Nd4 {[%emt 0:01:38]} 29. gxh5 {[%emt 0:01:07]} g5 {[%emt 0:00:22]} 30. Qg3 {[%emt 0:02:00]} f5 {[%emt 0:01:58]} 31. Qd6 {[%emt 0:01:53]} Rc6 {[%emt 0:01:49]} 32. Qd5+ {[%emt 0:02:20]} Qf7 {[%emt 0:00:48]} 33. Qxf7+ {[%emt 0:00:43]} Kxf7 {[%emt 0:00:02]} 34. h6 {[%emt 0:00:48]} Kg8 {[%emt 0:01:04]} 35. Rh5 {[%emt 0:01:02]} Rg6 {[%emt 0:01:10]} 36. Rg1 {[%emt 0:00:53]} Ne6 {[%emt 0:00:25]} 37. Nc2 {[%emt 0:00:36]} f4 {[%emt 0:01:21]} 38. Na3 {[%emt 0:00:40]} Kh7 {[%emt 0:01:26]} 39. Nc4 {[%emt 0:00:20]} Rd8 {[%emt 0:03:20]} 40. Ne5 {[%emt 0:00:15]} Rf6 {[%emt 0:00:18]} 41. Ke1 {[%emt 0:31:28]} Rd5 {[%emt 0:32:01]} 42. Ng4 {[%emt 0:01:03]} Rf8 {[%emt 0:00:01]} 43. Rh3 {[%emt 0:00:54]} b5 {[%emt 0:00:51]} 44. Nh2 {[%emt 0:02:05]} Rd6 {[%emt 0:00:21]} 45. Ng4 {[%emt 0:01:03]} Rf5 {[%emt 0:00:17]} 46. Rc3 {[%emt 0:00:51]} Nd4 {[%emt 0:00:46]} 47. Rh1 {[%emt 0:02:13]} Ra6 {[%emt 0:00:22]} 48. e3 {[%emt 0:01:19]} Nf3+ {[%emt 0:01:47]} 49. Ke2 {[%emt 0:00:17]} Rxa2 {[%emt 0:00:10]} 50. Rd1 {[%emt 0:00:21]} Nh4 {[%emt 0:02:30]} 51. Rdc1 {[%emt 0:00:59]} f3+ {[%emt 0:01:20]} 52. Kd1 {[%emt 0:00:21]} Ng6 {[%emt 0:01:05]} 53. Rxc5 {[%emt 0:00:46]} Rf8 {[%emt 0:00:57]} 54. Rxb5 {[%emt 0:01:31]} Rd8 {[%emt 0:01:39]} 55. Nf6+ {[%emt 0:00:56]} Kxh6 {[%emt 0:00:25]} 56. Nxe4 {[%emt 0:00:18]} g4 {[%emt 0:00:40]} 57. d4 {[%emt 0:01:43]} Re8 {[%emt 0:01:36]} 58. Nf6 {[%emt 0:00:39]} Rh8 {[%emt 0:00:16]} 59. Nxg4+ {[%emt 0:00:32]} Kg7 {[%emt 0:00:18]} 60. Rc7+ {[%emt 0:00:36]} Kg8 {[%emt 0:00:31]} 61. Rb8+ 1-0

[Event "55th Rubinstein Memorial-C 2019"]
[Site "Polanica-Zdroj"]
[Date "2019.08.18"]
[Round "2.19"]
[White "Wojtas, Julia"]
[Black "Musial, Igor"]
[Result "0-1"]
[ECO "B56"]
[WhiteElo "1522"]
[BlackElo "1717"]
[Annotator "NA"]
[PlyCount "66"]
[EventDate "2019.08.17"]
[EventType "swiss"]
[EventCountry "POL"]
[SourceTitle "playchess.com"]
[Source "ChessBase"]
[SourceQuality "1"]
[TimeControl "40/5400+30:1800+30"]

1. e4 {[%emt 0:00:00]} c5 {[%emt 0:00:00]} 2. Nf3 {[%emt 0:00:00]} Nc6 {[%emt 0:00:10]} 3. d4 {[%emt 0:00:00]} cxd4 {[%emt 0:00:08]} 4. Nxd4 {[%emt 0:00:00]} Nf6 {[%emt 0:00:51]} 5. Nc3 {[%emt 0:01:39]} d6 {[%emt 0:00:23]} 6. a4 {[%emt 0:06:56]} e5 {[%emt 0:02:09]} 7. Ndb5 {[%emt 0:04:52]} a6 {[%emt 0:10:42]} 8. Na3 {[%emt 0:01:46]} Be6 {[%emt 0:05:04]} 9. Bg5 {[%emt 0:08:07]} Be7 {[%emt 0:14:58]} 10. Nc4 {[%emt 0:07:48]} Nd4 {[%emt 0:24:47]} 11. Be3 {[%emt 0:12:56]} Rc8 {[%emt 0:04:55]} 12. Na3 {[%emt 0:12:04]} Qb6 {[%emt 0:06:01]} 13. Rb1 {[%emt 0:05:36]} O-O {[%emt 0:09:56]} 14. Be2 {[%emt 0:13:25]} Qb4 {[%emt 0:05:23]} 15. Bd2 {[%emt 0:05:55]} Qc5 {[%emt 0:04:12]} 16. O-O {[%emt 0:02:36]} d5 {[%emt 0:00:52]} 17. b4 {[%emt 0:02:19]} Qc7 {[%emt 0:00:52]} 18. exd5 {[%emt 0:01:00]} Nxd5 {[%emt 0:00:31]} 19. Nxd5 {[%emt 0:00:20]} Bxd5 {[%emt 0:00:16]} 20. c4 {[%emt 0:02:09]} Nxe2+ {[%emt 0:01:20]} 21. Qxe2 {[%emt 0:00:08]} Bxc4 {[%emt 0:00:24]} 22. Nxc4 {[%emt 0:00:17]} Qxc4 {[%emt 0:00:17]} 23. Qxe5 {[%emt 0:00:32]} Bf6 {[%emt 0:00:22]} 24. Qf5 {[%emt 0:02:01]} Qa2 {[%emt 0:00:45]} 25. Be3 {[%emt 0:02:16]} Qxa4 {[%emt 0:00:26]} 26. Bc5 {[%emt 0:01:48]} Rfe8 {[%emt 0:00:42]} 27. Rfd1 {[%emt 0:00:51]} Qb5 {[%emt 0:01:32]} 28. Rd6 {[%emt 0:01:52]} a5 {[%emt 0:02:53]} 29. Rb6 {[%emt 0:02:48]} Qe2 {[%emt 0:00:11]} 30. Be3 {[%emt 0:00:42]} a4 {[%emt 0:01:42]} 31. Rxb7 {[%emt 0:01:16]} a3 {[%emt 0:00:59]} 32. Qd7 {[%emt 0:00:50]} a2 {[%emt 0:00:59]} 33. Qxf7+ {[%emt 0:00:49]} Kh8 {[%emt 0:00:08]} 0-1

[Event "55th Rubinstein Memorial-C 2019"]
[Site "Polanica-Zdroj"]
[Date "2019.08.18"]
[Round "2.20"]
[White "Witkowski, Krzysztof"]
[Black "Arciszewska, Zuzanna"]
[Result "1-0"]
[ECO "C86"]
[WhiteElo "1707"]
[BlackElo "1499"]
[Annotator "NA"]
[PlyCount "67"]
[EventDate "2019.08.17"]
[EventType "swiss"]
[EventCountry "POL"]
[SourceTitle "playchess.com"]
[Source "ChessBase"]
[SourceQuality "1"]
[TimeControl "40/5400+30:1800+30"]

1. e4 {[%emt 0:00:00]} e5 {[%emt 0:00:00]} 2. Nf3 {[%emt 0:00:00]} Nc6 {[%emt 0:00:04]} 3. Bb5 {[%emt 0:00:00]} a6 {[%emt 0:00:36]} 4. Ba4 {[%emt 0:00:00]} Nf6 {[%emt 0:00:38]} 5. O-O {[%emt 0:00:42]} b5 {[%emt 0:00:47]} 6. Bb3 {[%emt 0:00:03]} Be7 {[%emt 0:00:41]} 7. Qe2 {[%emt 0:00:20]} d6 {[%emt 0:01:18]} 8. c3 {[%emt 0:00:07]} O-O {[%emt 0:00:29]} 9. d4 {[%emt 0:00:57]} Bg4 {[%emt 0:01:10]} 10. Rd1 {[%emt 0:01:12]} Re8 {[%emt 0:08:13]} 11. d5 {[%emt 0:08:12]} Nb8 {[%emt 0:02:33]} 12. a4 {[%emt 0:00:18]} bxa4 {[%emt 0:04:06]} 13. Bxa4 {[%emt 0:00:16]} Bd7 {[%emt 0:00:40]} 14. Bc2 {[%emt 0:00:13]} c6 {[%emt 0:03:44]} 15. c4 {[%emt 0:04:30]} Qc7 {[%emt 0:02:25]} 16. Nc3 {[%emt 0:03:03]} Bg4 {[%emt 0:02:54]} 17. h3 {[%emt 0:03:52]} Bh5 {[%emt 0:01:43]} 18. Be3 {[%emt 0:07:00]} Nbd7 {[%emt 0:00:59]} 19. dxc6 {[%emt 0:07:36]} Qxc6 {[%emt 0:00:36]} 20. Ba4 {[%emt 0:00:33]} Qb7 {[%emt 0:01:38]} 21. Nd5 {[%emt 0:04:27]} Nxd5 {[%emt 0:01:51]} 22. cxd5 {[%emt 0:00:13]} Reb8 {[%emt 0:02:05]} 23. Bc6 {[%emt 0:02:21]} Qc7 {[%emt 0:00:40]} 24. Rdc1 {[%emt 0:06:44]} Qd8 {[%emt 0:01:21]} 25. Bxa8 {[%emt 0:00:15]} Rxa8 {[%emt 0:00:02]} 26. Rxa6 {[%emt 0:00:15]} Rxa6 {[%emt 0:00:32]} 27. Qxa6 {[%emt 0:00:06]} Nf8 {[%emt 0:00:51]} 28. Rc8 {[%emt 0:04:26]} Qd7 {[%emt 0:00:12]} 29. Qc6 {[%emt 0:00:20]} Qxc6 {[%emt 0:00:49]} 30. dxc6 {[%emt 0:00:12]} Bxf3 {[%emt 0:00:19]} 31. gxf3 {[%emt 0:00:08]} f6 {[%emt 0:00:20]} 32. c7 {[%emt 0:00:06]} Kf7 {[%emt 0:00:07]} 33. Rxf8+ {[%emt 0:00:14]} Bxf8 {[%emt 0:00:10]} 34. c8=Q 1-0

[Event "55th Rubinstein Memorial-C 2019"]
[Site "Polanica-Zdroj"]
[Date "2019.08.18"]
[Round "2.21"]
[White "Kolodziejski, Piotr"]
[Black "Bartlomowicz, Jakub"]
[Result "1/2-1/2"]
[ECO "B33"]
[WhiteElo "1701"]
[BlackElo "1497"]
[Annotator "NA"]
[PlyCount "80"]
[EventDate "2019.08.17"]
[EventType "swiss"]
[EventCountry "POL"]
[SourceTitle "playchess.com"]
[Source "ChessBase"]
[SourceQuality "1"]
[TimeControl "40/5400+30:1800+30"]

1. e4 {[%emt 0:00:00]} c5 {[%emt 0:00:00]} 2. Nf3 {[%emt 0:00:00]} Nc6 {[%emt 0:00:02]} 3. d4 {[%emt 0:00:00]} cxd4 {[%emt 0:00:37]} 4. Nxd4 {[%emt 0:00:07]} Nf6 {[%emt 0:00:16]} 5. Nc3 {[%emt 0:00:34]} e5 {[%emt 0:00:38]} 6. Ndb5 {[%emt 0:00:16]} d6 {[%emt 0:00:44]} 7. Bg5 {[%emt 0:00:40]} a6 {[%emt 0:01:32]} 8. Na3 {[%emt 0:00:08]} b5 {[%emt 0:00:57]} 9. Nd5 {[%emt 0:01:31]} Be7 {[%emt 0:01:32]} 10. Bxf6 {[%emt 0:02:35]} Bxf6 {[%emt 0:00:08]} 11. c4 {[%emt 0:01:14]} b4 {[%emt 0:00:59]} 12. Nc2 {[%emt 0:01:25]} O-O {[%emt 0:04:45]} 13. Ndxb4 {[%emt 0:13:40]} Nxb4 {[%emt 0:00:22]} 14. Nxb4 {[%emt 0:00:26]} Qb6 {[%emt 0:00:25]} 15. Nd5 {[%emt 0:14:08]} Qxb2 {[%emt 0:02:05]} 16. Bd3 {[%emt 0:01:42]} Bd8 {[%emt 0:14:15]} 17. O-O {[%emt 0:01:54]} Be6 {[%emt 0:00:09]} 18. Qc2 {[%emt 0:03:43]} Qxc2 {[%emt 0:00:29]} 19. Bxc2 {[%emt 0:00:07]} Bxd5 {[%emt 0:00:04]} 20. cxd5 {[%emt 0:01:01]} Bb6 {[%emt 0:00:46]} 21. Rab1 {[%emt 0:01:48]} Rab8 {[%emt 0:00:23]} 22. Bd3 {[%emt 0:00:33]} a5 {[%emt 0:00:45]} 23. Rfc1 {[%emt 0:01:10]} Bc5 {[%emt 0:00:20]} 24. Kf1 {[%emt 0:08:16]} Rb4 {[%emt 0:01:04]} 25. Rxb4 {[%emt 0:00:13]} axb4 {[%emt 0:00:05]} 26. Ke2 {[%emt 0:00:50]} Ra8 {[%emt 0:00:09]} 27. Bc4 {[%emt 0:00:16]} Kf8 {[%emt 0:00:07]} 28. f3 {[%emt 0:01:01]} Ke7 {[%emt 0:00:05]} 29. h4 {[%emt 0:01:51]} f6 {[%emt 0:01:41]} 30. g4 {[%emt 0:00:23]} h6 {[%emt 0:00:35]} 31. Rh1 {[%emt 0:02:11]} Rh8 {[%emt 0:00:16]} 32. h5 {[%emt 0:01:38]} Ra8 {[%emt 0:00:13]} 33. Rf1 {[%emt 0:00:44]} Ra3 {[%emt 0:01:23]} 34. Bb3 {[%emt 0:00:08]} Ra7 {[%emt 0:00:11]} 35. Kd3 {[%emt 0:01:18]} Rc7 {[%emt 0:02:06]} 36. Rc1 {[%emt 0:00:12]} Rb7 {[%emt 0:00:17]} 37. Rc2 {[%emt 0:00:39]} Rb6 {[%emt 0:00:21]} 38. Rc1 {[%emt 0:01:15]} Rb7 {[%emt 0:00:02]} 39. Rc2 {[%emt 0:00:26]} Rb6 {[%emt 0:00:04]} 40. Rc1 {[%emt 0:00:18]} Rb7 {[%emt 0:00:03]} 1/2-1/2

[Event "55th Rubinstein Memorial-C 2019"]
[Site "Polanica-Zdroj"]
[Date "2019.08.18"]
[Round "2.22"]
[White "Kurtycz, Maciej"]
[Black "Brzozowski, Pawel"]
[Result "1-0"]
[ECO "C18"]
[WhiteElo "1689"]
[BlackElo "1496"]
[Annotator "NA"]
[PlyCount "43"]
[EventDate "2019.08.17"]
[EventType "swiss"]
[EventCountry "POL"]
[SourceTitle "playchess.com"]
[Source "ChessBase"]
[SourceQuality "1"]
[TimeControl "40/5400+30:1800+30"]

1. e4 {[%emt 0:00:00]} e6 {[%emt 0:00:00]} 2. d4 {[%emt 0:00:00]} d5 {[%emt 0:00:00]} 3. Nc3 {[%emt 0:00:00]} Bb4 {[%emt 0:00:09]} 4. e5 {[%emt 0:00:11]} c5 {[%emt 0:00:30]} 5. a3 {[%emt 0:00:11]} Bxc3+ {[%emt 0:01:17]} 6. bxc3 {[%emt 0:00:08]} Nc6 {[%emt 0:02:53]} 7. Qg4 {[%emt 0:01:40]} Nge7 {[%emt 0:00:40]} 8. Nf3 {[%emt 0:02:59]} Qc7 {[%emt 0:19:19]} 9. Bb5 {[%emt 0:08:38]} cxd4 {[%emt 0:03:32]} 10. O-O {[%emt 0:01:30]} Bd7 {[%emt 0:27:34]} 11. cxd4 {[%emt 0:00:45]} O-O-O {[%emt 0:01:51]} 12. Rb1 {[%emt 0:20:02]} Rdg8 {[%emt 0:10:06]} 13. Rd1 {[%emt 0:15:48]} f5 {[%emt 0:03:49]} 14. Qf4 {[%emt 0:03:47]} h6 {[%emt 0:05:10]} 15. c4 {[%emt 0:01:02]} a6 {[%emt 0:08:57]} 16. Bxc6 {[%emt 0:00:23]} Bxc6 {[%emt 0:00:30]} 17. c5 {[%emt 0:00:24]} g5 {[%emt 0:00:28]} 18. Qd2 {[%emt 0:00:39]} Ng6 {[%emt 0:03:11]} 19. Qb4 {[%emt 0:00:52]} g4 {[%emt 0:01:28]} 20. Nd2 {[%emt 0:01:06]} Nf4 {[%emt 0:03:34]} 21. Nb3 {[%emt 0:00:36]} Bb5 {[%emt 0:01:31]} 22. Bxf4 {[%emt 0:00:14]} 1-0

[Event "55th Rubinstein Memorial-C 2019"]
[Site "Polanica-Zdroj"]
[Date "2019.08.18"]
[Round "2.23"]
[White "Wolska, Marta"]
[Black "Maslo, Slawomir"]
[Result "0-1"]
[ECO "D43"]
[WhiteElo "1516"]
[BlackElo "1687"]
[Annotator "NA"]
[PlyCount "98"]
[EventDate "2019.08.17"]
[EventType "swiss"]
[EventCountry "POL"]
[SourceTitle "playchess.com"]
[Source "ChessBase"]
[SourceQuality "1"]
[TimeControl "40/5400+30:1800+30"]

1. d4 d5 2. c4 c6 3. Nc3 Nf6 4. Nf3 e6 5. cxd5 exd5 6. Bg5 Bd6 7. h3 Bf5 8. e3 Nbd7 9. Bd3 Bxd3 10. Qxd3 Qb6 11. Rb1 O-O 12. O-O h6 13. Bf4 Bxf4 14. exf4 Rfe8 15. Ne5 Rad8 16. b4 Nf8 17. Na4 Qc7 18. b5 cxb5 19. Rxb5 b6 20. Rb3 Ne4 21. Nc3 f6 22. Nb5 Qb7 23. Nf3 Ne6 24. g3 Rc8 25. Nd2 a6 26. Nc3 Nxd2 27. Qxd2 Rc4 28. Qe3 Qc6 29. Ne2 Nc7 30. Qf3 Nb5 31. Rd1 Re4 32. Rbd3 Rc2 33. Re3 Qc4 34. Rdd3 Qxa2 35. Nc3 Nxc3 36. Rxc3 Rxe3 37. Rxe3 Qa1+ 38. Kg2 Qxd4 39. Re8+ Kf7 40. Re3 b5 41. Qh5+ g6 42. Qxh6 Qxe3 43. Qh7+ Ke6 44. Qg8+ Ke7 45. Qg7+ Kd6 46. Qxf6+ Qe6 47. Qf8+ Kc6 48. Qa8+ Kb6 49. Qb8+ Ka5 0-1